bitfinex/quotes_SOLUSD_20251201
["timestamp","ask_amount","ask_price","bid_price","bid_amount"]
[1764579160972,3.52202409,127.92,127.89,27.36726874]
[1764579161172,0.7,127.92,127.89,27.36726874]
[1764579161493,0.7,127.91,127.89,28.02726874]
[1764579162190,0.7,127.91,127.89,30.84929283]
[1764579162369,0.7,127.91,127.89,30.34929283]
[1764579164076,8.80994492,127.9,127.89,7.81921964]
[1764579164403,72.60044539,127.9,127.88,7.81983109]
[1764579164687,9.50994492,127.89,127.88,7.81983109]
[1764579165470,8.80994492,127.88,127.87,27.37128331]
[1764579168615,0.7,127.89,127.87,7.82044263]
[1764579170394,0.7,127.89,127.87,8.48044263]
[1764579171695,11.63196901,127.88,127.85,0.66]
[1764579171876,8.80994492,127.88,127.85,0.66]
[1764579172191,9.50994492,127.88,127.85,3.48202409]
[1764579172801,9.50994492,127.88,127.86,0.66]
[1764579173296,9.50994492,127.88,127.86,8.48096399]
[1764579174694,11.63196901,127.88,127.85,7.82166601]
[1764579174896,8.80994492,127.84,127.81,8.68383875]
[1764579175200,11.63196901,127.84,127.81,8.68383875]
[1764579175497,12.33196901,127.84,127.81,8.68383875]
[1764579175802,3.52202409,127.83,127.81,8.02383875]
[1764579176697,9.47994492,127.84,127.81,8.71383875]
[1764579177010,3.49202409,127.83,127.81,0.2]
[1764579177188,11.63196901,127.82,127.81,0.2]
[1764579177385,12.30196901,127.82,127.81,0.2]
[1764579178499,12.30196901,127.82,127.81,8.02411391]
[1764579178884,12.30196901,127.82,127.81,0.2]
[1764579179907,9.47994492,127.82,127.81,8.02411391]
[1764579180618,8.69444177,127.84,127.81,8.71411391]
[1764579180905,61.63847638,127.85,127.83,7.82288977]
[1764579181600,63.79050047,127.85,127.83,7.82288977]
[1764579181803,12.30196901,127.84,127.83,7.82288977]
[1764579183890,9.47994492,127.84,127.82,7.82350179]
[1764579184110,8.80994492,127.84,127.82,8.51350179]
[1764579184404,9.47994492,127.84,127.82,8.51350179]
[1764579186119,8.80994492,127.84,127.82,8.51350179]
[1764579187221,8.80994492,127.84,127.82,11.33552588]
[1764579187705,60.96847638,127.85,127.83,3.51202409]
[1764579189015,60.96847638,127.85,127.84,3.51202409]
[1764579189307,8.80994492,127.86,127.84,3.51202409]
[1764579189612,9.47994492,127.86,127.85,7.82166601]
[1764579191099,9.47994492,127.86,127.84,12.23342942]
[1764579191407,8.80994492,127.86,127.84,12.92342942]
[1764579191795,61.63847638,127.87,127.84,32.47912403]
[1764579191999,61.63847638,127.87,127.85,5.10128771]
[1764579193111,70.4484213,127.87,127.86,7.82105427]
[1764579199423,70.4484213,127.87,127.85,5.10128771]
[1764579199424,70.4484213,127.87,127.84,0.69]
[1764579199718,70.4484213,127.87,127.85,0.69]
[1764579199921,70.4484213,127.87,127.85,5.10128771]
[1764579201423,70.4484213,127.87,127.86,7.82105427]
[1764579206402,70.4484213,127.87,127.86,12.23234198]
[1764579206824,70.4484213,127.87,127.86,7.82105427]
[1764579208928,70.4484213,127.87,127.86,12.23234198]
[1764579209114,70.4484213,127.87,127.86,7.82105427]
[1764579218438,8.80994492,127.86,127.85,4.41128771]
[1764579218642,9.47994492,127.86,127.84,4.41128771]
[1764579219239,9.47994492,127.86,127.84,5.09128771]
[1764579219426,8.80994492,127.86,127.85,0.68]
[1764579220040,8.80994492,127.86,127.85,5.09128771]
[1764579220837,8.80994492,127.86,127.85,12.91295372]
[1764579223848,60.96847638,127.87,127.85,32.46711875]
[1764579224024,61.63847638,127.87,127.85,32.46711875]
[1764579226243,70.4484213,127.87,127.86,4.41128771]
[1764579226748,70.4484213,127.87,127.85,28.05583104]
[1764579226950,70.4484213,127.87,127.86,4.41128771]
[1764579228450,70.4484213,127.87,127.85,32.46711875]
[1764579228832,60.96847638,127.9,127.86,4.41128771]
[1764579229154,9.47994492,127.89,127.86,0.68]
[1764579229325,9.47994492,127.89,127.87,4.41128771]
[1764579229524,9.47994492,127.89,127.87,5.09128771]
[1764579229726,16.978864,127.91,127.88,4.41128771]
[1764579229943,9.47994492,127.9,127.89,4.41128771]
[1764579230442,9.47994492,127.9,127.89,12.23050735]
[1764579231842,9.47994492,127.9,127.88,7.8195461]
[1764579232044,0.67,127.89,127.88,7.8195461]
[1764579232852,0.67,127.89,127.87,27.37002591]
[1764579234447,5.08128771,127.89,127.87,7.82044263]
[1764579234650,5.08128771,127.89,127.86,7.82105427]
[1764579234952,0.67,127.88,127.86,7.82105427]
[1764579235138,8.80994492,127.87,127.86,7.82105427]
[1764579235652,9.47994492,127.87,127.86,7.82105427]
[1764579236853,9.47994492,127.87,127.85,27.37488123]
[1764579238031,9.47994492,127.87,127.85,31.78616894]
[1764579238235,9.47994492,127.87,127.85,32.46616894]
[1764579240032,0.66,127.87,127.85,32.46616894]
[1764579240543,9.46994492,127.87,127.85,32.46616894]
[1764579240743,8.80994492,127.87,127.85,32.46616894]
[1764579241049,8.80994492,127.87,127.85,28.05488123]
[1764579241236,9.46994492,127.87,127.85,28.05488123]
[1764579242051,9.46994492,127.87,127.85,27.37488123]
[1764579243249,9.46994492,127.87,127.85,28.05488123]
[1764579244340,8.80994492,127.87,127.86,0.68]
[1764579245039,8.80994492,127.87,127.85,31.78616894]
[1764579245355,9.46994492,127.87,127.85,27.37488123]
[1764579245560,74.84970901,127.86,127.85,7.82166601]
[1764579245758,8.80994492,127.85,127.84,7.82170111]
[1764579246054,13.88123263,127.85,127.84,7.82170111]
[1764579247156,13.88123263,127.85,127.83,7.82288977]
[1764579248055,13.88123263,127.85,127.83,8.50288977]
[1764579248261,13.88123263,127.85,127.82,7.82350179]
[1764579248454,74.84970901,127.85,127.82,8.50350179]
[1764579248763,70.4384213,127.85,127.82,8.50350179]
[1764579250264,70.4384213,127.85,127.82,28.06225628]
[1764579250864,74.84970901,127.85,127.82,28.06225628]
[1764579251068,70.4384213,127.85,127.82,32.47354399]
[1764579251660,69.7784213,127.85,127.82,31.79354399]
[1764579251866,70.4384213,127.85,127.83,5.09128771]
[1764579252057,69.7784213,127.85,127.83,5.09128771]
[1764579252447,69.7784213,127.85,127.83,3.50389954]
[1764579252643,69.7784213,127.85,127.83,0.68]
[1764579252848,70.4384213,127.85,127.83,0.68]
[1764579253048,70.4384213,127.85,127.83,3.50389954]
[1764579253973,70.4384213,127.85,127.84,7.82227784]
[1764579257762,73.26232084,127.85,127.81,0.88]
[1764579257947,8.80994492,127.83,127.82,0.68]
[1764579258369,8.80994492,127.83,127.81,11.52801328]
[1764579258751,9.46994492,127.83,127.81,11.52801328]
[1764579259862,8.80994492,127.83,127.81,11.52801328]
[1764579260364,9.46994492,127.83,127.81,11.52801328]
[1764579261578,8.80994492,127.83,127.81,10.84801328]
[1764579261875,9.46994492,127.83,127.81,10.84801328]
[1764579262879,9.46994492,127.83,127.81,11.52801328]
[1764579266480,9.46994492,127.83,127.81,8.70411374]
[1764579266781,9.46994492,127.83,127.81,11.52801328]
[1764579267685,9.46994492,127.83,127.81,8.70411374]
[1764579267857,9.46994492,127.83,127.81,11.52801328]
[1764579269565,9.46994492,127.83,127.81,10.84801328]
[1764579270573,0.67,127.82,127.81,10.84801328]
[1764579270762,0.67,127.82,127.81,8.02411374]
[1764579271061,9.47994492,127.83,127.81,8.74411374]
[1764579271360,9.47994492,127.83,127.81,11.56801328]
[1764579272985,9.47994492,127.83,127.81,31.12829807]
[1764579275492,9.47994492,127.83,127.81,28.30439853]
[1764579275791,9.47994492,127.83,127.81,31.12829807]
[1764579276377,9.47994492,127.83,127.81,28.30439853]
[1764579276685,0.67,127.82,127.81,0.2]
[1764579276989,91.978864,127.82,127.81,0.2]
[1764579277484,95.11599587,127.82,127.81,0.2]
[1764579277792,91.978864,127.82,127.81,0.2]
[1764579277970,16.978864,127.82,127.81,0.2]
[1764579280191,103.61270846,127.82,127.81,0.2]
[1764579280490,111.63735968,127.82,127.81,0.2]
[1764579291004,25.11880892,127.82,127.81,0.92]
[1764579291410,25.11880892,127.82,127.81,8.74411391]
[1764579291600,8.80994492,127.82,127.81,8.74411391]
[1764579294106,8.80994492,127.82,127.81,8.02411391]
[1764579294513,9.47994492,127.82,127.81,8.02411391]
[1764579296311,8.80994492,127.82,127.81,8.02411391]
[1764579296510,9.51994492,127.82,127.81,8.02411391]
[1764579297323,8.80994492,127.82,127.81,8.72411391]
[1764579297809,9.51994492,127.82,127.81,8.02411391]
[1764579298012,8.80994492,127.82,127.81,8.72411391]
[1764579298512,8.80994492,127.82,127.81,0.2]
[1764579298722,178.65270846,127.82,127.81,0.2]
[1764579299010,189.61383428,127.82,127.81,0.2]
[1764579304320,8.80994492,127.82,127.81,8.72411391]
[1764579305321,8.80994492,127.82,127.81,8.02411391]
[1764579305620,9.51994492,127.82,127.81,8.02411391]
[1764579310719,8.80994492,127.82,127.81,8.02411391]
[1764579310926,3.13688585,127.84,127.81,31.10829824]
[1764579311253,8.80994492,127.83,127.82,3.52389954]
[1764579311807,0.71,127.87,127.82,3.52389954]
[1764579312016,8.80994492,127.86,127.84,2.82389954]
[1764579312328,8.80994492,127.86,127.83,3.52389954]
[1764579312524,9.51994492,127.86,127.83,3.52389954]
[1764579312826,9.51994492,127.86,127.85,7.82166601]
[1764579313730,9.51994492,127.86,127.84,7.82197802]
[1764579314227,9.51994492,127.86,127.84,8.52197802]
[1764579315525,9.51994492,127.86,127.84,7.82197802]
[1764579315725,9.51994492,127.86,127.84,8.52197802]
[1764579316122,9.51994492,127.86,127.84,7.82197802]
[1764579316516,0.71,127.85,127.84,7.82197802]
[1764579316720,13.93223736,127.85,127.83,7.82263377]
[1764579317234,8.80994492,127.83,127.82,7.82350179]
[1764579318236,0.71,127.83,127.81,8.02385411]
[1764579318415,0.71,127.83,127.81,8.72385411]
[1764579318930,5.12229244,127.83,127.81,8.02385411]
[1764579321446,4.41229244,127.83,127.81,8.02385411]
[1764579321649,9.51994492,127.82,127.81,8.02385411]
[1764579321824,8.80994492,127.82,127.81,8.02385411]
[1764579322512,8.80994492,127.82,127.81,8.72385411]
[1764579325146,8.80994492,127.82,127.81,8.02385411]
[1764579325447,9.51994492,127.82,127.81,8.02385411]
[1764579325944,8.80994492,127.82,127.81,8.02385411]
[1764579328625,8.80994492,127.82,127.81,8.69385411]
[1764579329248,8.80994492,127.82,127.81,8.02385411]
[1764579330347,8.80994492,127.82,127.81,8.69385411]
[1764579330731,5.11229244,127.84,127.81,32.66643134]
[1764579330732,0.7,127.84,127.81,32.66643134]
[1764579330934,8.80994492,127.83,127.82,0.67]
[1764579331760,8.80994492,127.86,127.82,5.08229244]
[1764579332053,8.80994492,127.86,127.83,4.41229244]
[1764579332250,9.50994492,127.86,127.83,5.08229244]
[1764579332760,9.50994492,127.86,127.84,7.82227784]
[1764579333233,13.92223736,127.86,127.84,7.82227784]
[1764579334855,9.50994492,127.86,127.84,7.82227784]
[1764579335056,13.92223736,127.86,127.84,8.49227784]
[1764579335350,8.80994492,127.86,127.85,0.67]
[1764579335754,8.80994492,127.86,127.84,27.37797245]
[1764579335930,8.80994492,127.86,127.84,28.04797245]
[1764579336132,9.50994492,127.86,127.84,27.37797245]
[1764579336647,8.80994492,127.86,127.84,28.04797245]
[1764579337644,9.50994492,127.86,127.84,28.04797245]
[1764579339348,8.80994492,127.86,127.84,28.04797245]
[1764579339550,9.50994492,127.86,127.84,28.04797245]
[1764579340350,8.80994492,127.86,127.84,27.37797245]
[1764579340553,94.54690045,127.9,127.85,5.08229244]
[1764579340554,8.80994492,127.9,127.85,5.08229244]
[1764579340757,8.80994492,127.9,127.87,4.41229244]
[1764579341058,8.80994492,127.9,127.88,7.81983109]
[1764579341356,8.80994492,127.9,127.88,8.48983109]
[1764579342155,9.50994492,127.9,127.88,8.48983109]
[1764579345261,8.80994492,127.9,127.88,8.48983109]
[1764579346255,9.50994492,127.9,127.88,8.48983109]
[1764579347142,0.7,127.89,127.88,7.81983109]
[1764579347939,8.80994492,127.9,127.88,8.48983109]
[1764579348241,9.50994492,127.9,127.88,8.48983109]
[1764579349257,8.80994492,127.9,127.89,0.67]
[1764579350859,8.80994492,127.9,127.89,8.48921964]
[1764579352360,8.80994492,127.9,127.89,7.81921964]
[1764579352663,8.80994492,127.9,127.89,8.48921964]
[1764579357467,8.80994492,127.9,127.89,12.90151208]
[1764579358666,8.80994492,127.9,127.89,7.81921964]
[1764579358965,9.46994492,127.9,127.89,7.81921964]
[1764579360077,9.46994492,127.9,127.88,7.81983109]
[1764579360250,9.46994492,127.89,127.88,7.81983109]
[1764579364677,8.80994492,127.87,127.85,7.82166601]
[1764579364973,8.80994492,127.87,127.85,8.49166601]
[1764579365146,9.46994492,127.87,127.85,8.49166601]
[1764579366172,8.80994492,127.87,127.85,8.49166601]
[1764579366768,9.46994492,127.87,127.85,8.49166601]
[1764579367663,8.80994492,127.87,127.85,8.49166601]
[1764579368857,8.80994492,127.87,127.86,0.67]
[1764579369280,8.80994492,127.87,127.85,8.49166601]
[1764579371187,8.80994492,127.87,127.85,28.04583104]
[1764579372587,9.46994492,127.87,127.85,28.04583104]
[1764579372956,8.80994492,127.87,127.85,27.37583104]
[1764579373162,8.80994492,127.87,127.85,28.04583104]
[1764579373686,8.80994492,127.87,127.86,0.67]
[1764579374070,8.80994492,127.87,127.85,28.04583104]
[1764579374276,8.80994492,127.87,127.86,0.67]
[1764579375082,8.80994492,127.87,127.85,28.04583104]
[1764579375283,8.80994492,127.87,127.85,27.37583104]
[1764579375492,8.80994492,127.87,127.86,0.67]
[1764579375785,8.80994492,127.87,127.85,28.04583104]
[1764579378264,9.46994492,127.87,127.85,28.04583104]
[1764579378989,8.80994492,127.87,127.85,27.37583104]
[1764579379196,8.80994492,127.87,127.85,28.04583104]
[1764579380387,9.46994492,127.87,127.85,28.04583104]
[1764579380794,8.80994492,127.87,127.85,27.37583104]
[1764579381086,8.80994492,127.87,127.85,28.04583104]
[1764579383200,9.46994492,127.87,127.85,28.04583104]
[1764579383366,8.80994492,127.87,127.85,28.04583104]
[1764579384592,8.80994492,127.87,127.86,0.67]
[1764579384900,8.80994492,127.87,127.85,27.37583104]
[1764579385194,8.80994492,127.87,127.86,0.67]
[1764579386392,8.80994492,127.89,127.86,3.49329489]
[1764579386591,8.80994492,127.89,127.87,2.82329489]
[1764579386767,8.80994492,127.89,127.88,8.49983109]
[1764579389868,8.80994492,127.9,127.88,30.8727037]
[1764579390072,8.80994492,127.9,127.89,0.66]
[1764579390996,8.80994492,127.9,127.88,30.8527037]
[1764579391496,8.80994492,127.9,127.88,28.02940881]
[1764579391702,8.80994492,127.9,127.88,30.8527037]
[1764579393075,9.49994492,127.9,127.88,28.02940881]
[1764579393276,8.80994492,127.9,127.88,30.1927037]
[1764579393470,8.80994492,127.9,127.89,0.66]
[1764579394904,8.80994492,127.9,127.89,8.47921964]
[1764579395486,8.80994492,127.9,127.89,11.30251453]
[1764579395675,8.80994492,127.9,127.89,7.81921964]
[1764579397399,61.65847638,127.91,127.89,7.81921964]
[1764579397400,61.65847638,127.91,127.89,27.36726874]
[1764579397703,61.65847638,127.91,127.89,30.85056363]
[1764579398810,60.96847638,127.91,127.89,30.85056363]
[1764579399104,61.65847638,127.91,127.89,30.85056363]
[1764579399304,61.65847638,127.91,127.89,28.02726874]
[1764579406504,60.96847638,127.91,127.89,30.19056363]
[1764579406698,69.7784213,127.91,127.9,8.47860828]
[1764579406900,69.7784213,127.91,127.9,7.81860828]
[1764579407401,70.4684213,127.91,127.9,7.81860828]
[1764579409211,70.4684213,127.91,127.89,28.02726874]
[1764579409419,9.49994492,127.9,127.89,27.36726874]
[1764579410197,9.49994492,127.9,127.89,7.81921964]
[1764579411514,8.80994492,127.89,127.88,7.81952075]
[1764579411807,9.49994492,127.89,127.88,7.81952075]
[1764579414324,9.49994492,127.89,127.87,7.82013543]
[1764579414510,8.80994492,127.89,127.88,0.66]
[1764579414915,9.49994492,127.89,127.87,30.85453691]
[1764579415228,9.49994492,127.89,127.87,28.03124202]
[1764579416820,8.80994492,127.89,127.88,0.72]
[1764579418696,8.80994492,127.89,127.88,8.53983109]
[1764579419209,8.80994492,127.89,127.88,7.81983109]
[1764579419420,8.80994492,127.89,127.88,8.53983109]
[1764579420427,9.51994492,127.89,127.87,28.09154922]
[1764579420834,8.80994492,127.89,127.87,28.09154922]
[1764579421029,60.96847638,127.9,127.88,0.72]
[1764579421215,60.96847638,127.9,127.88,3.54329489]
[1764579421533,60.96847638,127.9,127.89,2.82329489]
[1764579422534,60.96847638,127.9,127.89,7.81921964]
[1764579423630,9.51994492,127.9,127.89,7.81921964]
[1764579423918,12.34323981,127.9,127.87,27.37107781]
[1764579424119,8.80994492,127.88,127.87,7.81997122]
[1764579424505,8.80994492,127.9,127.87,11.36326611]
[1764579424699,9.51994492,127.9,127.88,3.54329489]
[1764579425116,9.51994492,127.9,127.88,0.72]
[1764579425623,9.51994492,127.9,127.88,8.53937637]
[1764579429129,9.51994492,127.9,127.88,7.81937637]
[1764579430424,8.80994492,127.9,127.89,0.72]
[1764579430632,0.71,127.91,127.89,0.72]
[1764579431128,0.71,127.91,127.89,30.91056363]
[1764579433622,0.71,127.91,127.89,30.19056363]
[1764579434116,0.71,127.91,127.89,30.91056363]
[1764579435634,0.71,127.91,127.89,28.08726874]
[1764579436613,69.7784213,127.92,127.9,0.72]
[1764579436818,70.4884213,127.92,127.9,0.72]
[1764579437130,70.4884213,127.92,127.89,28.08726874]
[1764579437625,0.71,127.91,127.89,28.08726874]
[1764579438540,69.7784213,127.92,127.89,32.49524241]
[1764579438541,70.4884213,127.92,127.89,32.49524241]
[1764579438867,8.80994492,127.92,127.91,7.81799702]
[1764579440942,8.80994492,127.92,127.91,8.53799702]
[1764579441343,8.80994492,127.92,127.91,7.81799702]
[1764579441646,9.51994492,127.92,127.91,7.81799702]
[1764579441830,8.80994492,127.92,127.91,7.81799702]
[1764579442330,9.51994492,127.92,127.91,7.81799702]
[1764579445848,9.51994492,127.92,127.9,7.81860828]
[1764579446366,9.51994492,127.92,127.9,8.51860828]
[1764579448751,8.80994492,127.92,127.9,8.51860828]
[1764579448931,8.80994492,127.92,127.91,0.67]
[1764579449454,8.80994492,127.92,127.9,8.48860828]
[1764579450444,9.47994492,127.92,127.9,8.48860828]
[1764579450643,8.80994492,127.92,127.9,27.36512899]
[1764579450845,181.32380739,127.95,127.91,5.07797367]
[1764579450846,8.80994492,127.94,127.91,5.07797367]
[1764579451236,8.80994492,127.94,127.92,0.67]
[1764579451444,9.47994492,127.94,127.92,0.67]
[1764579452755,9.47994492,127.94,127.93,7.81677479]
[1764579456060,8.80994492,127.94,127.93,7.81677479]
[1764579456234,8.80994492,127.94,127.93,8.48677479]
[1764579458348,8.80994492,127.94,127.93,7.81677479]
[1764579458740,9.47994492,127.94,127.93,7.81677479]
[1764579460056,9.47994492,127.94,127.92,8.48738586]
[1764579460638,9.47994492,127.94,127.92,7.81738586]
[1764579460839,9.47994492,127.94,127.92,8.48738586]
[1764579461036,8.80994492,127.94,127.92,7.81738586]
[1764579461347,9.47994492,127.93,127.92,7.81738586]
[1764579465962,9.47994492,127.93,127.91,19.54397881]
[1764579466170,9.47994492,127.93,127.91,20.21397881]
[1764579466555,8.80994492,127.93,127.91,20.21397881]
[1764579466869,9.47994492,127.93,127.91,20.21397881]
[1764579467452,13.88791859,127.92,127.9,7.81860828]
[1764579467657,8.80994492,127.9,127.88,7.81983109]
[1764579467858,13.21791859,127.9,127.88,7.81983109]
[1764579468152,0.67,127.89,127.87,7.82044263]
[1764579468551,8.80994492,127.88,127.87,7.82044263]
[1764579469071,13.88791859,127.88,127.86,7.82074416]
[1764579469375,9.47994492,127.87,127.86,7.82074416]
[1764579470061,9.47994492,127.87,127.84,20.22474102]
[1764579470062,9.47994492,127.87,127.85,7.82166601]
[1764579471267,9.47994492,127.87,127.85,8.49166601]
[1764579471575,9.47994492,127.87,127.85,7.82166601]
[1764579471774,9.47994492,127.86,127.85,7.82166601]
[1764579472362,9.47994492,127.86,127.84,7.82198081]
[1764579473473,9.47994492,127.86,127.84,8.49198081]
[1764579473978,8.80994492,127.86,127.84,8.49198081]
[1764579474864,9.47994492,127.86,127.84,8.49198081]
[1764579478080,8.80994492,127.86,127.84,8.49198081]
[1764579478283,9.49994492,127.86,127.84,8.49198081]
[1764579480883,8.80994492,127.86,127.85,0.69]
[1764579481387,8.80994492,127.86,127.84,8.51198081]
[1764579482882,9.49994492,127.86,127.84,8.51198081]
[1764579483383,8.80994492,127.86,127.84,8.51198081]
[1764579484786,8.80994492,127.86,127.84,7.82198081]
[1764579484981,8.80994492,127.86,127.85,0.69]
[1764579485287,8.80994492,127.86,127.84,7.82198081]
[1764579485587,8.80994492,127.86,127.84,8.51198081]
[1764579486587,85.17774257,127.88,127.85,0.69]
[1764579486771,8.80994492,127.87,127.85,5.09797367]
[1764579487280,9.49994492,127.87,127.85,5.09797367]
[1764579487671,9.49994492,127.87,127.86,7.82105427]
[1764579488382,84.48589887,127.88,127.86,8.51105427]
[1764579488582,69.7784213,127.88,127.87,0.69]
[1764579488964,69.7784213,127.88,127.86,12.91902794]
[1764579489168,69.7784213,127.88,127.86,8.51105427]
[1764579491488,74.18639497,127.88,127.86,7.82105427]
[1764579491685,70.4684213,127.88,127.86,7.82105427]
[1764579491888,70.4684213,127.88,127.86,8.51105427]
[1764579494584,9.49994492,127.87,127.86,7.82105427]
[1764579494763,13.90791859,127.87,127.86,7.82105427]
[1764579495389,9.49994492,127.87,127.86,7.82105427]
[1764579495590,8.80994492,127.87,127.86,8.51105427]
[1764579495770,9.49994492,127.87,127.86,7.82105427]
[1764579497598,9.49994492,127.87,127.85,7.82166601]
[1764579497779,9.49994492,127.87,127.85,8.51166601]
[1764579498944,12.32318134,127.86,127.81,0.2]
[1764579499099,12.32318134,127.86,127.82,0.69]
[1764579499100,9.49994492,127.86,127.82,0.69]
[1764579499398,11.63318134,127.84,127.81,0.2]
[1764579499594,0.69,127.83,127.81,0.2]
[1764579499789,8.80994492,127.82,127.81,0.2]
[1764579500107,12.52318134,127.82,127.81,0.2]
[1764579500286,13.21318134,127.82,127.81,0.2]
[1764579500881,16.03641776,127.82,127.81,0.2]
[1764579506504,12.52318134,127.82,127.81,0.2]
[1764579506906,8.80994492,127.82,127.81,8.73411391]
[1764579508385,12.35318134,127.82,127.81,0.2]
[1764579510090,20.37821657,127.82,127.81,0.2]
[1764579510293,100.37848194,127.82,127.81,0.2]
[1764579510497,103.20171836,127.82,127.81,0.2]
[1764579512704,116.68734594,127.82,127.81,0.2]
[1764579512897,100.37848194,127.82,127.81,0.2]
[1764579513100,103.20171836,127.82,127.81,0.2]
[1764579514204,16.83498015,127.82,127.81,0.2]
[1764579514704,17.55498015,127.82,127.81,0.2]
[1764579516496,16.83498015,127.82,127.81,0.2]
[1764579516809,8.80994492,127.82,127.81,0.2]
[1764579517411,8.80994492,127.82,127.81,8.73411391]
[1764579517703,8.80994492,127.82,127.81,8.02411391]
[1764579518293,8.80994492,127.82,127.81,11.55735033]
[1764579520007,16.308864,127.83,127.81,11.55735033]
[1764579520200,25.11880892,127.83,127.82,3.53323642]
[1764579520507,139.82323642,127.87,127.82,11.35673821]
[1764579520508,94.76281335,127.87,127.82,11.35673821]
[1764579520689,9.52994492,127.87,127.84,2.82323642]
[1764579521010,25.11880892,127.85,127.84,2.82323642]
[1764579521206,25.11880892,127.85,127.84,3.53323642]
[1764579521805,8.80994492,127.84,127.83,2.82323642]
[1764579521986,8.80994492,127.84,127.83,3.53323642]
[1764579524193,8.80994492,127.84,127.83,11.35612619]
[1764579528817,8.80994492,127.85,127.83,11.35612619]
[1764579528997,8.80994492,127.85,127.84,3.53323642]
[1764579530213,8.80994492,127.85,127.84,11.35551426]
[1764579532120,8.80994492,127.89,127.84,30.91120887]
[1764579532297,0.72,127.88,127.86,2.82323642]
[1764579533019,0.72,127.88,127.86,3.53323642]
[1764579533224,0.72,127.88,127.86,11.35378675]
[1764579537429,8.80994492,127.87,127.86,11.35378675]
[1764579539716,62.0,127.88,127.86,30.90642244]
[1764579539919,70.80994492,127.88,127.87,3.49323642]
[1764579540728,70.80994492,127.88,127.87,10.64367905]
[1764579541306,70.80994492,127.88,127.87,11.31367905]
[1764579542312,70.80994492,127.88,127.87,10.64367905]
[1764579542620,70.80994492,127.88,127.87,11.31367905]
[1764579543221,70.80994492,127.88,127.87,10.64367905]
[1764579543532,71.49994492,127.88,127.87,10.64367905]
[1764579543835,71.49994492,127.88,127.87,7.82044263]
[1764579544006,8.80994492,127.87,127.84,0.67]
[1764579544207,9.49994492,127.87,127.86,2.82323642]
[1764579544720,8.80994492,127.87,127.86,2.82323642]
[1764579544929,8.80994492,127.87,127.86,3.49323642]
[1764579546238,9.49994492,127.87,127.86,7.82105427]
[1764579548815,9.49994492,127.87,127.83,2.82323642]
[1764579549016,8.80994492,127.85,127.83,2.82323642]
[1764579549542,9.49994492,127.85,127.84,2.82323642]
[1764579549741,75.0,127.88,127.84,3.49323642]
[1764579549922,75.69,127.91,127.82,66.49976527]
[1764579549923,75.0,127.91,127.87,2.82323642]
[1764579550242,75.0,127.91,127.89,2.82323642]
[1764579550243,0.69,127.91,127.89,2.82323642]
[1764579550418,19.748864,127.9,127.89,2.82323642]
[1764579550618,8.80994492,127.89,127.87,0.67]
[1764579550819,8.80994492,127.89,127.88,10.64306751]
[1764579551254,8.80994492,127.89,127.88,11.31306751]
[1764579552341,19.748864,127.9,127.88,30.86264523]
[1764579552342,3.44,127.9,127.88,30.86264523]
[1764579552539,3.44,127.93,127.89,3.49323642]
[1764579552849,3.44,127.97,127.93,7.81677479]
[1764579553048,3.44,127.97,127.96,2.82323642]
[1764579554216,3.44,127.97,127.96,3.49323642]
[1764579554852,3.44,127.97,127.96,2.82323642]
[1764579555948,3.44,127.97,127.96,3.49323642]
[1764579556952,3.44,127.97,127.96,11.30817858]
[1764579560434,3.44,127.97,127.96,12.88726061]
[1764579562533,8.80994492,127.96,127.95,7.81536257]
[1764579562753,9.49994492,127.96,127.95,7.81536257]
[1764579564250,9.49994492,127.96,127.94,7.81616382]
[1764579564450,8.80994492,127.95,127.94,7.81616382]
[1764579564629,8.80994492,127.95,127.94,12.21848227]
[1764579567136,9.52994492,127.95,127.94,7.81616382]
[1764579567341,12.96994492,127.95,127.94,7.81616382]
[1764579567535,79.37226337,127.95,127.94,7.81616382]
[1764579568057,74.96994492,127.95,127.94,7.81616382]
[1764579569452,8.80994492,127.94,127.92,7.81738586]
[1764579569663,3.44,127.93,127.92,7.81738586]
[1764579569963,4.16,127.93,127.92,7.81738586]
[1764579570157,8.80994492,127.92,127.9,5.06231845]
[1764579570864,8.80994492,127.92,127.9,12.88089678]
[1764579571340,3.44,127.91,127.9,7.81857833]
[1764579571540,4.16,127.91,127.89,7.81898678]
[1764579571739,8.80994492,127.9,127.89,7.81898678]
[1764579571952,8.80994492,127.9,127.88,12.88193657]
[1764579574659,9.51994492,127.9,127.88,8.47961812]
[1764579575052,9.51994492,127.9,127.88,7.81961812]
[1764579575236,0.71,127.89,127.86,7.82105427]
[1764579575443,3.44,127.88,127.86,7.82105427]
[1764579575644,3.44,127.88,127.86,8.54105427]
[1764579576851,8.80994492,127.92,127.87,5.12231845]
[1764579577053,4.15,127.94,127.91,4.40231845]
[1764579577387,8.80994492,127.93,127.91,4.40231845]